Cogmind - Beta 17 @@@ ROGUE MODE // 2026.06.24 @ 20:41:45 Player: D4-RLM Result: Destroyed by G-34 Mercenary with Small Laser Performance ------------- Evolutions (0) 0 Regions Visited (3) 600 Robots Destroyed (34) 170 Value Destroyed (653) 653 Prototype IDs (23) 460 Alien Tech Used (0) 0 Bonus (300) 300 TOTAL SCORE: 2183 Bonus ------- Aligned with FarCom 300 Cogmind --------- Core Integrity 0/250 Matter 210/300 Energy 113/125 System Corruption 0% Temperature Cool (4) Movement Treading (240) Ox1 Location -10/Exiles Parts ------- > --- POWER (1) -------- Light Ion Engine > --- PROPULSION (2) --- Improved Treads Improved Treads > --- UTILITY (2) ------ High-capacity Storage Unit Shield Generator > --- WEAPON (2) ------- Light Assault Rifle Field Lobotomy Kit > --- INVENTORY (20) --- Light Treads Small Storage Unit Medium Laser Light Assault Rifle Light Assault Rifle Light Cannon Grenade Launcher Datajack Mining Laser Peak State ------------ > --- POWER ------------ Light Ion Engine > --- PROPULSION ------- Improved Treads Improved Treads > --- UTILITY ---------- High-capacity Storage Unit Shield Generator > --- WEAPON ----------- Light Assault Rifle Field Lobotomy Kit > --- INVENTORY -------- Light Treads Small Storage Unit Medium Laser Light Assault Rifle Light Assault Rifle Light Cannon Grenade Launcher Datajack Mining Laser [Rating: 19] Favorites ----------- Power Light Ion Engine Engine Light Ion Engine Propulsion Improved Treads Treads Improved Treads Utility Seismic Detector Device Seismic Detector Storage High-capacity Storage Unit Weapon Light Assault Rifle Energy Gun EM Pulse Gun Ballistic Gun Light Assault Rifle Ballistic Cannon Light Cannon Launcher Grenade Launcher Special Weapon Field Lobotomy Kit Build | -11 -10 -10 -10 ------- Run | Yrd Mat Min Exi Slots Evolved . | . . . . Power . | . . . . Propulsion . | . . . . Utility . | . . . . Weapon . | . . . . Parts Attached 20 | 8 4 6 2 Power 2 | 1 . 1 . Engine 2 | 1 . 1 . Core . | . . . . Reactor . | . . . . Propulsion 6 | 2 2 2 . Treads 6 | 2 2 2 . Leg . | . . . . Wheel . | . . . . Hover . | . . . . Flight . | . . . . Utility 4 | 2 1 . 1 Device 2 | 1 . . 1 Storage 2 | 1 1 . . Processor . | . . . . Hackware . | . . . . Protection . | . . . . Artifact . | . . . . Weapon 8 | 3 1 3 1 Energy Gun 2 | 2 . . . Energy Cannon . | . . . . Ballistic Gun 3 | 1 . 2 . Ballistic Cannon 1 | . 1 . . Launcher 1 | . . 1 . Special Weapon 1 | . . . 1 Impact Weapon . | . . . . Slashing Weapon . | . . . . Piercing Weapon . | . . . . Special Melee Weapon . | . . . . Unidentified Prototypes . | . . . . Parts Lost 5 | . 1 4 . Power 1 | . . 1 . Propulsion 2 | . . 2 . Utility 1 | . . 1 . Weapon 1 | . 1 . . Highest Loss Streak 2 | . 1 2 . To Critical Strikes . | . . . . Average Backups 8 | 3 7 9 9 Power . | . 1 . . Propulsion 1 | 1 2 1 1 Utility 1 | . 1 2 1 Weapon 3 | . 2 4 5 Tool/Special . | . . . . Unused Backups 4 | . 2 . 2 Power . | . . . . Propulsion 3 | . 2 . 1 Utility . | . . . . Weapon . | . . . . Tool/Special 1 | . . . 1 Average Slot Usage (%) 96 | . 99 93 91 Engine 13 | . 14 13 14 Treads 27 | . 28 27 28 Device 10 | . 14 8 5 Storage 14 | . 14 14 14 Energy Gun 4 | . 9 . . Ballistic Gun 14 | . 14 15 14 Ballistic Cannon 3 | . 4 3 . Launcher 5 | . . 8 13 Peak Build Rating 19 | 7 10 10 19 Average Rating 9 | 5 9 9 9 On Entrance 6 | . 7 10 9 Avg Prop Armor Cover (%) . | . . . . Naked Turns . | . . . . Heaviest Build 54 | 12 48 48 54 Greatest Support 46 | 40 46 46 46 Greatest Overweight (x) 2 | . 1 2 1 Average Overweight (x) . | . . . 1 Largest Inventory Capacity 20 | 8 20 20 20 Average Capacity 15 | 7 11 20 20 Most Carried 11 | 4 10 11 10 Average Carried 8 | 3 7 9 9 Final Capacity 20 | 8 20 20 20 Final Carried 10 | 4 10 9 9 Class Distribution -------------------- 100% | Mutant Dominant Class ---------------- Mutant | -10/Materials Mutant | -10/Mines Mutant | -10/Exiles Resources | -11 -10 -10 -10 ----------- Run | Yrd Mat Min Exi Matter Collected 637 | 286 109 242 . Remotely . | . . . . Salvage Created 762 | 67 416 279 . Parts 67 | 9 27 31 . Haulers Intercepted 2 | . 2 . . Recyclers Shooed 1 | . . 1 . Parts Field Recycled . | . . . . Retrieved Matter . | . . . . Parts Self-Destructed . | . . . . Prevented . | . . . . Parts Restored . | . . . . Kills | -11 -10 -10 -10 ------- Run | Yrd Mat Min Exi Combat Hostiles Destroyed 27 | . 8 19 . Guns 10 | . 7 3 . Cannons 4 | . 1 3 . AOE 13 | . . 13 . Classes Destroyed 5 | 1 4 . . Tunneler 3 | 3 . . . Hauler 2 | . 2 . . Watcher 2 | . 2 . . Swarmer 16 | . 3 13 . Grunt 11 | . 5 6 . Best Kill Streak 3 | 3 1 3 . Combat Bots Only 3 | . 1 3 . Max Kills in Single Turn 3 | 1 1 3 . Gunslinging . | . . . . Exploded 3 | . . 3 . Melee . | . . . . Uniques/NPCs Destroyed . | . . . . Combat | -11 -10 -10 -10 -------- Run | Yrd Mat Min Exi Hostile Shots Fired 119 | . 39 76 4 Missed 34 | . 5 27 2 Hits 85 | . 34 49 2 Projectile 85 | . 34 49 2 Damage Taken 1105 | . 348 742 15 Core 253 | . 53 193 7 Absorbed by Shields 6 | . . . 6 Core Remaining (%) 100 | 100 . . . Volleys Fired 91 | 6 42 43 . Largest 2 | 2 2 2 . Hottest 60 | 60 60 50 . Shots Fired 165 | 12 77 76 . Gun 126 | 12 70 44 . Cannon 29 | . 7 22 . Launcher 10 | . . 10 . Special . | . . . . Kinetic 121 | 6 49 66 . Thermal . | . . . . Explosive 10 | . . 10 . Electromagnetic 34 | 6 28 . . Robot Hit Streak 14 | 4 11 14 . Robot Miss Streak 3 | 2 3 2 . Penetration Max . | . . . . Secondary Targets 1 | . . 1 . Max Gunslinging Chain 1 | . . 1 . Shots Hit Robots 118 | 7 52 59 . Core Hits 47 | 4 18 25 . Critical Kills 1 | . . 1 . Critical Parts Destroyed 2 | . 2 . . Critical Strikes 3 | . 2 1 . Destroy 3 | . 2 1 . Melee Attacks . | . . . . Impact . | . . . . Slashing . | . . . . Piercing . | . . . . Sneak Attacks . | . . . . Combat Hostiles . | . . . . Follow-up Attacks . | . . . . Damage Inflicted 2010 | 73 647 1290 . Guns 858 | 73 484 301 . Cannons 412 | . 128 284 . Explosions 740 | . 35 705 . Melee . | . . . . Ramming . | . . . . Kinetic 981 | 12 384 585 . Thermal 35 | . 35 . . Explosive 705 | . . 705 . Electromagnetic 289 | 61 228 . . Impact . | . . . . Slashing . | . . . . Piercing . | . . . . Highest Corruption . | . . . . Average Corruption . | . . . . Corruption Purged . | . . . . Corruption Blocked . | . . . . Overload Shots . | . . . . Overflow Damage 82 | . . 82 . Projectiles . | . . . . Explosions 82 | . . 82 . Melee . | . . . . Knockbacks 2 | . . 2 . Impact . | . . . . Kinetic 2 | . . 2 . Secondary . | . . . . Self-Inflicted Damage 160 | . . 160 . Shots 6 | . . 6 . Rammed . | . . . . Targets Rammed . | . . . . Kicked . | . . . . Crushed . | . . . . Highest Temperature 85 | 20 85 44 . Average Temperature 19 | 13 21 18 . Received Heat Transfer 359 | . 99 252 8 Siege Activations . | . . . . Martial Activations . | . . . . Shielding Activations . | . . . . Robots Disrupted . | . . . . Combat Hostiles . | . . . . Robots Corrupted . | . . . . Combat Hostiles . | . . . . Parts Fried 2 | . 2 . . Impact Corruptions . | . . . . Robots Melted . | . . . . Combat Hostiles . | . . . . Parts Melted . | . . . . Heat Transferred 50 | . 50 . . Parts Sabotaged . | . . . . Parts Stolen . | . . . . Parts Stripped . | . . . . Power Chain Reactions 1 | . 1 . . Alert | -11 -10 -10 -10 ------- Run | Yrd Mat Min Exi Maximum Alert Level 1 | . . 1 . Low Security (%) 99 | 100 100 98 . Level 1 . | . . 1 . Level 2 . | . . . . Level 3 . | . . . . Level 4 . | . . . . Level 5 . | . . . . High Security . | . . . . Max Security . | . . . . Peak Influence 200 | 10 60 200 . Initial 7 | . . 7 . Average 50 | 1 14 104 . Influence Increases 844 | 15 291 538 . Destroy 0b10 Robot/C 540 | . 160 380 . Destroy 0b10 Robot/NC 35 | 15 20 . . Destroy Leader 118 | . 48 70 . Disable Machine 15 | . 15 . . Destroy Structure 76 | . 3 73 . Lose Combat Pursuer 60 | . 45 15 . Influence Decreases 844 | 15 270 532 27 Entered New Map 41 | . . 14 27 Time Decay 753 | 15 260 478 . Lost Part 50 | . 10 40 . Squads Dispatched 2 | . 2 . . Investigation . | . . . . Extermination . | . . . . Reinforcement 2 | . 2 . . Assault . | . . . . Garrison . | . . . . Intercept . | . . . . Searches Triggered . | . . . . Construction Impeded . | . . . . Haulers Reinforced . | . . . . Active Scanning Responses . | . . . . Cargo Convoy Interrupts . | . . . . Stealth | -11 -10 -10 -10 --------- Run | Yrd Mat Min Exi Distress Signals . | . . . . Communications Jammed . | . . . . Distress Signals . | . . . . Times Spotted 40 | . 17 20 3 Peak Tracking Total 3 | . 3 3 3 Tactical Retreats 3 | . 2 1 . Traps | -11 -10 -10 -10 ------- Run | Yrd Mat Min Exi Traps Triggered . | . . . . Indirectly . | . . . . Trap Hack Attempts . | . . . . Triggered . | . . . . Disarmed . | . . . . Reprogrammed . | . . . . Reused . | . . . . Traps Extracted . | . . . . Installed . | . . . . Triggered . | . . . . Machines | -11 -10 -10 -10 ---------- Run | Yrd Mat Min Exi Machines Disabled 1 | . 1 . . Max in Single Turn 1 | . 1 . . Machines Repaired . | . . . . Machines Dismantled . | . . . . Machines Sabotaged . | . . . . Overloaded Fab Kills . | . . . . Hacking | -11 -10 -10 -10 --------- Run | Yrd Mat Min Exi Machines Accessed 2 | . 1 . 1 Terminals 1 | . 1 . . Fabricators . | . . . . Repair Stations . | . . . . Recycling Units . | . . . . Scanalyzers . | . . . . Garrison Access . | . . . . Total Hacks 2 | . 1 . 1 Successful 2 | . 1 . 1 Failed . | . . . . Catastrophic . | . . . . Database Lockouts . | . . . . Manual 2 | . 1 . 1 Terminals 1 | . 1 . . Fabricators . | . . . . Repair Stations . | . . . . Recycling Units . | . . . . Scanalyzers . | . . . . Garrison Access . | . . . . Terminal Hacks 2 | . 1 . 1 Emergency Access Points 1 | . 1 . . Proto ID Catalog 1 | . . . 1 Fabricator Hacks . | . . . . Repair Station Hacks . | . . . . Recycling Unit Hacks . | . . . . Scanalyzer . | . . . . Garrison Access Hacks . | . . . . Unauthorized Hacks . | . . . . Terminals . | . . . . Fabricators . | . . . . Repair Stations . | . . . . Recycling Units . | . . . . Scanalyzers . | . . . . Garrison Access . | . . . . Data Cores Recovered . | . . . . Used . | . . . . Hacking Detections . | . . . . Full Trace Events . | . . . . Feedback Events . | . . . . Feedback Blocked . | . . . . Robot Schematics Acquired . | . . . . Robots Built . | . . . . Authchips . | . . . . Time . | . . . . Total Robot Build Rating . | . . . . Part Schematics Acquired . | . . . . Parts Built . | . . . . Authchips . | . . . . Time . | . . . . Total Part Build Rating . | . . . . Part Studies Acquired . | . . . . Parts Repaired . | . . . . Time . | . . . . Parts Recycled . | . . . . Recycled Matter . | . . . . Retrieved Matter . | . . . . Retrieved Components . | . . . . Parts Scanalyzed . | . . . . Part Schematics Acquired . | . . . . Parts Damaged . | . . . . Bothacking | -11 -10 -10 -10 ------------ Run | Yrd Mat Min Exi Used RIF Installer . | . . . . Robots Hacked . | . . . . Non-combat . | . . . . Combat . | . . . . Robot Hacks Applied . | . . . . Relay Couplers Released . | . . . . Fabnet Peak Effective % . | . . . . Robots Rewired . | . . . . Allies Hacked . | . . . . Hacks Repelled . | . . . . Allies | -11 -10 -10 -10 -------- Run | Yrd Mat Min Exi Total Allies . | . . . . Largest Group . | . . . . Highest-Rated Group . | . . . . Highest-Rated Ally . | . . . . Total Orders . | . . . . Ally Attacks . | . . . . Total Damage . | . . . . Kills . | . . . . Allies Corrupted . | . . . . Allies Melted . | . . . . Intel | -11 -10 -10 -10 ------- Run | Yrd Mat Min Exi Active Infowar (turns) 2442 | 26 1663 753 . Seismic 2442 | 26 1663 753 . Robot Analysis Total . | . . . . Derelict Logs Recovered 1 | . . 1 . Drone Launches . | . . . . Drone Recoveries . | . . . . Exploration | -11 -10 -10 -10 ------------- Run | Yrd Mat Min Exi Turns Passed 3513 | 146 1663 1228 476 Spaces Moved 1427 | 72 677 481 197 Core 3 | 3 . . . Treads 1424 | 69 677 481 197 Legs . | . . . . Wheels . | . . . . Hover . | . . . . Flight . | . . . . Fastest Speed 50 | 50 160 160 240 Average Speed 202 | 155 179 226 240 Slowest Speed 320 | 160 240 320 240 Overloaded Moves . | . . . . Propulsion Burnouts . | . . . . Robots Hopped . | . . . . Potential Cave-ins . | . . . . Cave-ins Triggered . | . . . . Exploration Rate (%) 54 | 5 80 87 46 Regions Visited 3 Branch Regions 2 Pre-discovered Areas . | . . . . Known Exits Taken . | . . . . Unknown Exits Taken 3 | 1 1 1 . Scrap Searched . | . . . . Spaces Dug . | . . . . Terrain Destroyed 94 | . 3 91 . Melee . | . . . . Projectile . | . . . . AOE 94 | . 3 91 . Terrain Rammed . | . . . . Walls Destroyed . | . . . . Machines Disabled . | . . . . Actions | -11 -10 -10 -10 --------- Run | Yrd Mat Min Exi Total 1902 | 91 1061 550 200 Wait 344 | 2 327 15 . Move 1424 | 71 676 480 197 Hop . | . . . . Pick Up 15 | 4 8 2 1 Fast Attach 7 | 7 . . . Attach 5 | . 1 3 1 Detach . | . . . . Swap 12 | 1 3 7 1 Drop 4 | . 4 . . Fire 91 | 6 42 43 . Melee . | . . . . Ram . | . . . . Kick . | . . . . Crush . | . . . . Escape Stasis . | . . . . Rewire . | . . . . Trap . | . . . . Miscellaneous . | . . . . Route ------- -11/Scrapyard -10/Materials (discovered 3 exits: [*Mat x2] / [*Min]) -10/Mines (discovered 3 exits: [*Mat] / *Exi / [*Sub]) -10/Exiles History --------- Turn | Location | Event 51 | -11/Scrapyard | Discovered new exit (range 15) 147 | -11/Scrapyard | Entered Materials 310 | -10/Materials | Build established: Mutant 1021 | -10/Materials | Discovered new exit (range 4) 1529 | -10/Materials | Discovered new exit (range 16) 1710 | -10/Materials | Discovered new exit (range 15) 1810 | -10/Materials | Entered Mines 2016 | -10/Mines | Core integrity fell below 50% 2224 | -10/Mines | Core integrity fell below 20% 2396 | -10/Mines | Learned Materials emergency access door positions 2560 | -10/Mines | Discovered new exit (range 6) 2824 | -10/Mines | Discovered new exit (range 7) 3026 | -10/Mines | Deemed a non-threat by the Exiles lab entrance 3028 | -10/Mines | Discovered new exit (range 5) 3038 | -10/Mines | Entered Exiles 3103 | -10/Exiles | Met 8R-AWN 3139 | -10/Exiles | Met EX-HEX 3204 | -10/Exiles | Met EX-BIN 3233 | -10/Exiles | Aligned with FarCom system 3235 | -10/Exiles | Given EX-Vault access code 3295 | -10/Exiles | Opened EX-Vault 3314 | -10/Exiles | Found Field Lobotomy Kit 3360 | -10/Exiles | Warned to stay clear of 0b10 Research branches 3394 | -10/Exiles | Exiles lab attacked by MAIN.C 3501 | -10/Exiles | Lost 7 allies 3514 | -10/Exiles | Destroyed by G-34 Mercenary with Small Laser Last Messages --------------- something like 1234 which I did last time as a little joke and some thief managed to sneak in here and steal a few of HEX's prototypes. 03394_ EXILES: Incoming Unaware force detected on approach from Mines. Prepare for evacuation. 03418_ 8R-AWN: "We've got company!" 03422_ 8R-AWN: "I'll cover you all, get out of here!" 03429_ EXILES: Lab perimeter alert, evacuate immediately. 03435_ EX-BIN: "Not cool, MAIN.C, I don't even have my SDF Cannon ready..." 03459_ as-19077 springs to life. 03460_ as-62298 springs to life. 03462_ as-62298 destroyed. 03496_ 8R-AWN: "I have a feeling things are about to get a lot worse here, go go go take the back way out!" 03509_ Machine disabled. Map ----- +----------------------------------------------------+ | ???????????????????????????????# #?#"""""""#?? | | ???????????????????????????????# #?#"""""""#?? | | ??????????????????????????????## ###"" """"#?? | | ??????????????????????????????#" """"#?? | | ??????????????????????????????#" """#?? | | ??????????????????????????????#" """#?? | | ??????????????????????????????#" """#?? | | ??????????????????????????????#" """#?? | | ??????????????????????????????#" """#?? | | ??????????????????????????????## """"?? | | ???????????????????????????????# """#?? | | ???????????????????????????????#" "X" """"?? | | ???????????????????????????????#" """ #?? | | ???????????????????????????????#" """""""""#?? | | ??????????????????????????????##" ###########?? | | ?????????????????# ??????????##"" #???????????? | | ???????????????#?# ????######"" #???????????? | | ?????????????###X# #"###""""""" ##??????????? | | ???????????? """""" " "" ##???####### | | ???????????? "" """ " #####"""""" | | ???????????? " " " """ | | ??????????? "" | | ??????????? g " | | ?????????? | | ?????????? g | | ??????????" @ g g | | ???????????"" """""" | | ??????????" ######""" | | ??????????? ""##????#####""" | | ???????????" t """##?????????##""" | | ???????????? """##???????????#"""" | | ???????????? "?????????????#"" | | ???????????? #?????????????"""" | | ????????????? ?????????????? | | ????????????? ?????????????? | | ?????????????? ?? ?????????????? | | ?????????????? ?????????????????? | | ???????????????? ???????????????????? " | | ?????????????????????????????????????"" """ | | ???????????????????????????????????????" " " ""#" | | ?????????????????????????????????????????""" ""?## | | ????????????????????????????????????????????"????# | | ?????????????????????????????????????????????????? | | ?????????????????????????????????????????????????? | | ?????????????????????????????????????????????????? | | ?????????????????????????????????????????????????? | | ?????????????????????????????????????????????????? | | ?????????????????????????????????????????????????? | | ?????????????????????????????????????????????????? | | ?????????????????????????????????????????????????? | +----------------------------------------------------+ Best States ------------- Heat Dissipation 25 Energy Generation 10 Energy Capacity 125 Matter Stores 300 Matter Capacity 300 Sight Range 16 Terrain Scan Density 10 Evasion (%) 40 Recoil Reduction 2 Item Schematics ----------------- None Robot Schematics ------------------ None Fabricated ------------ Nothing Repaired ---------- Nothing Studied --------- None Alien Tech Used ----------------- None Achievements -------------- None Challenges ------------ None Game ------ Seed FortressCommDrivehammer Manual? 0 Play Time 00:18:13 Cumulative 29.4 hours Start 2026.06.24 @ 20:23:56 End 2026.06.24 @ 20:41:45 Sessions 1 Manual Loads 0 Difficulty Rogue Special Mode None Game No. 41 Rogue 37 Adventurer 4 Explorer 0 Win Type - Total 0 Types 0/0/0/0/0/0/0/0/0/0 Lore% 9 Gallery% 13 Achievement% 14 Wizard Run 0 Options --------- Layout 2 ASCII 0 Keyboard 1 Movement Numpad Keybinds 0 Fullscreen 1 Font 24/Smallcaps Map View 50x44 Zoom Use 61% Tactical HUD 1 Map Filters NONE Filters NONE Steam 1 RUN: 931d8535-d465-4d24-9a75-bcdcf035cb68